fUSD/lending_fUSD_20240907
["ID","MTS","AMOUNT","RATE_DAILY","PERIOD"]
[337448130,1725672702590,-500.0,0.00014794,2]
[337448131,1725672702599,-500.0,0.00014794,2]
[337448132,1725672702609,-500.0,0.00014794,2]
[337448133,1725672702620,-500.0,0.00014794,2]
[337448134,1725672702630,-243.3258792,0.00014794,2]
[337448135,1725672702639,-500.0,0.00014794,2]
[337448136,1725672702650,-500.0,0.00014794,2]
[337448137,1725672702660,-500.0,0.00014794,2]
[337448138,1725672702671,-500.0,0.00014794,2]
[337448139,1725672702680,-500.0,0.00014794,2]
[337448140,1725672702690,-500.0,0.00014794,2]
[337448141,1725672702699,-500.0,0.00014794,2]
[337448142,1725672702709,-500.0,0.00014794,2]
[337448143,1725672702719,-500.0,0.00014794,2]
[337448144,1725672702729,-500.0,0.00014794,2]
[337448145,1725672702739,-500.0,0.00014794,2]
[337448146,1725672702749,-500.0,0.00014794,2]
[337448147,1725672702758,-500.0,0.00014794,2]
[337448148,1725672702768,-500.0,0.00014794,2]
[337448149,1725672702777,-500.0,0.00014794,2]
[337448150,1725672702787,-500.0,0.00014794,2]
[337448151,1725672702798,-500.0,0.00014794,2]
[337448152,1725672702809,-500.0,0.00014794,2]
[337448153,1725672702820,-500.0,0.00014794,2]
[337448154,1725672702831,-500.0,0.00014794,2]
[337448155,1725672702842,-500.0,0.00014794,2]
[337448156,1725672702851,-500.0,0.00014794,2]
[337448157,1725672702860,-645.00572094,0.00014794,2]
[337448158,1725672702870,-500.0,0.00014794,2]
[337448159,1725672702879,-500.0,0.00014794,2]
[337448160,1725672702888,-500.0,0.00014794,2]
[337448161,1725672702898,-500.0,0.00014794,2]
[337448162,1725672702907,-500.0,0.00014794,2]
[337448163,1725672702918,-500.0,0.00014794,2]
[337448164,1725672702927,-500.0,0.00014794,2]
[337448165,1725672702936,-500.0,0.00014794,2]
[337448166,1725672702946,-500.0,0.00014794,2]
[337448167,1725672702955,-500.0,0.00014794,2]
[337448168,1725672702964,-500.0,0.00014794,2]
[337448169,1725672702979,-500.0,0.00014794,2]
[337448170,1725672702988,-500.0,0.00014794,2]
[337448171,1725672702997,-500.0,0.00014794,2]
[337448172,1725672703007,-500.0,0.00014794,2]
[337448173,1725672703017,-541.23,0.00014794,2]
[337448174,1725672703027,-500.0,0.00014794,2]
[337448175,1725672703037,-504.66577835,0.00014794,2]
[337448176,1725672703046,-500.0,0.00014794,2]
[337448177,1725672703055,-2994.79,0.00014794,2]
[337448178,1725672703065,-500.0,0.00014794,2]
[337448179,1725672703074,-500.0,0.00014794,2]
[337448180,1725672703083,-541.23,0.00014794,2]
[337448181,1725672703093,-2994.79,0.00014794,2]
[337448182,1725672703102,-500.0,0.00014794,2]
[337448183,1725672703112,-500.0,0.00014794,2]
[337448184,1725672703121,-283.93710808,0.00014794,2]
[337448185,1725672703130,-2994.79,0.00014794,2]
[337448186,1725672703139,-500.0,0.00014794,2]
[337448187,1725672703148,-500.0,0.00014794,2]
[337448188,1725672703158,-500.0,0.00014794,2]
[337448189,1725672703168,-2994.79,0.00014794,2]
[337448190,1725672703177,-541.23,0.00014794,2]
[337448191,1725672703187,-500.0,0.00014794,2]
[337448192,1725672703197,-500.0,0.00014794,2]
[337448193,1725672703207,-500.0,0.00014794,2]
[337448194,1725672703216,-500.0,0.00014794,2]
[337448195,1725672703225,-2994.79,0.00014794,2]
[337448196,1725672703235,-500.0,0.00014794,2]
[337448197,1725672703244,-500.0,0.00014794,2]
[337448198,1725672703255,-500.0,0.00014794,2]
[337448199,1725672703264,-500.0,0.00014794,2]
[337448200,1725672703274,-541.23,0.00014794,2]
[337448201,1725672703283,-500.0,0.00014794,2]
[337448202,1725672703293,-2994.79,0.00014794,2]
[337448203,1725672703302,-500.0,0.00014794,2]
[337448204,1725672703311,-500.0,0.00014794,2]
[337448205,1725672703321,-500.0,0.00014794,2]
[337448206,1725672703331,-364.27201417,0.00014794,2]
[337448207,1725672703340,-500.0,0.00014794,2]
[337448208,1725672703350,-541.23,0.00014794,2]
[337448209,1725672703359,-500.0,0.00014794,2]
[337448210,1725672703368,-2994.79,0.00014794,2]
[337448211,1725672703378,-505.40426926,0.00014794,2]
[337448212,1725672703387,-541.23,0.00014794,2]
[337448213,1725672703396,-500.0,0.00014794,2]
[337448214,1725672703405,-500.0,0.00014794,2]
[337448215,1725672703416,-500.0,0.00014794,2]
[337448216,1725672703426,-2994.79,0.00014794,2]
[337448217,1725672703435,-500.0,0.00014794,2]
[337448218,1725672703444,-500.0,0.00014794,2]
[337448219,1725672703453,-541.23,0.00014794,2]
[337448220,1725672703462,-500.0,0.00014794,2]
[337448221,1725672703475,-500.0,0.00014794,2]
[337448222,1725672703497,-500.0,0.00014794,2]
[337448223,1725672703512,-2994.79,0.00014794,2]
[337448224,1725672703530,-500.0,0.00014794,2]
[337448225,1725672703552,-417.28200556,0.00014794,2]
[337448226,1725672703569,-500.0,0.00014794,2]
[337448227,1725672703588,-500.0,0.00014794,2]
[337448228,1725672703603,-500.0,0.00014794,2]
[337448229,1725672703621,-2994.79,0.00014794,2]
[337448230,1725672703639,-541.23,0.00014794,2]
[337448231,1725672703660,-503.99211296,0.00014794,2]
[337448232,1725672703673,-500.0,0.00014794,2]
[337448233,1725672703690,-500.0,0.00014794,2]
[337448234,1725672703706,-500.0,0.00014794,2]
[337448235,1725672703722,-500.0,0.00014794,2]
[337448236,1725672703735,-2994.79,0.00014794,2]
[337448237,1725672703751,-500.0,0.00014794,2]
[337448238,1725672703769,-541.23,0.00014794,2]
[337448239,1725672703785,-500.0,0.00014794,2]
[337448240,1725672703801,-500.0,0.00014794,2]
[337448241,1725672703815,-218.22572691,0.00014794,2]
[337448242,1725672703832,-2994.79,0.00014794,2]
[337448243,1725672703847,-500.0,0.00014794,2]
[337448244,1725672703863,-541.23,0.00014794,2]
[337448245,1725672703879,-500.0,0.00014794,2]
[337448246,1725672703894,-500.0,0.00014794,2]
[337448247,1725672703908,-1005.06,0.00014794,2]
[337448248,1725672703924,-541.23,0.00014794,2]
[337448249,1725672703938,-2994.79,0.00014794,2]
[337448250,1725672703954,-500.0,0.00014794,2]
[337448251,1725672703970,-500.0,0.00014794,2]
[337448252,1725672703984,-500.0,0.00014794,2]
[337448253,1725672703999,-1005.06,0.00014794,2]
[337448254,1725672704013,-2994.79,0.00014794,2]
[337448255,1725672704028,-541.23,0.00014794,2]
[337448256,1725672704043,-500.0,0.00014794,2]
[337448257,1725672704057,-500.0,0.00014794,2]
[337448258,1725672704073,-500.0,0.00014794,2]
[337448259,1725672704089,-500.0,0.00014794,2]
[337448260,1725672704107,-2994.79,0.00014794,2]
[337448261,1725672704122,-1005.06,0.00014794,2]
[337448262,1725672704138,-541.23,0.00014794,2]
[337448263,1725672704154,-500.0,0.00014794,2]
[337448264,1725672704169,-500.0,0.00014794,2]
[337448265,1725672704183,-500.0,0.00014794,2]
[337448266,1725672704197,-500.0,0.00014794,2]
[337448267,1725672704212,-500.0,0.00014794,2]
[337448268,1725672704226,-1005.06,0.00014794,2]
[337448269,1725672704242,-2994.79,0.00014794,2]
[337448270,1725672704257,-541.23,0.00014794,2]
[337448271,1725672704271,-500.0,0.00014794,2]
[337448272,1725672704285,-311.51203417,0.00014794,2]
[337448273,1725672704301,-500.0,0.00014794,2]
[337448274,1725672704316,-500.0,0.00014794,2]
[337448275,1725672704332,-500.0,0.00014794,2]
[337448276,1725672704346,-1005.06,0.00014794,2]
[337448277,1725672704362,-541.23,0.00014794,2]
[337448278,1725672704377,-2994.79,0.00014794,2]
[337448279,1725672704391,-500.0,0.00014794,2]
[337448280,1725672704408,-500.0,0.00014794,2]
[337448281,1725672704424,-500.0,0.00014794,2]
[337448282,1725672704438,-1005.06,0.00014794,2]
[337448283,1725672704453,-500.0,0.00014794,2]
[337448284,1725672704468,-500.0,0.00014794,2]
[337448285,1725672704484,-495.1758907,0.00014794,2]
[337448286,1725672704499,-500.0,0.00014794,2]
[337448287,1725672704512,-1005.06,0.00014794,2]
[337448288,1725672704527,-328.48997388,0.00014794,2]
[337448289,1725672704541,-500.0,0.00014794,2]
[337448290,1725672704556,-500.0,0.00014794,2]
[337448291,1725672704570,-1005.06,0.00014794,2]
[337448292,1725672704585,-500.0,0.00014794,2]
[337448293,1725672704600,-500.0,0.00014794,2]
[337448294,1725672704614,-1005.06,0.00014794,2]
[337448295,1725672704629,-500.0,0.00014794,2]
[337448296,1725672704644,-1005.06,0.00014794,2]
[337448297,1725672704658,-500.0,0.00014794,2]
[337448298,1725672704672,-247.76058033,0.00014794,2]
[337448299,1725672704687,-500.0,0.00014794,2]
[337448300,1725672704704,-1005.06,0.00014794,2]
[337448301,1725672704719,-500.0,0.00014794,2]
[337448302,1725672704733,-500.0,0.00014794,2]
[337448303,1725672704748,-1005.06,0.00014794,2]
[337448304,1725672704763,-500.0,0.00014794,2]
[337448305,1725672704776,-500.0,0.00014794,2]
[337448306,1725672704790,-1005.06,0.00014794,2]
[337448307,1725672704808,-500.0,0.00014794,2]
[337448308,1725672704822,-500.0,0.00014794,2]
[337448309,1725672704837,-1005.06,0.00014794,2]
[337448310,1725672704851,-500.0,0.00014794,2]
[337448311,1725672704864,-500.0,0.00014794,2]
[337448312,1725672704879,-1005.06,0.00014794,2]
[337448313,1725672704895,-151.0,0.00014794,2]
[337448314,1725672704909,-500.0,0.00014794,2]
[337448315,1725672704924,-500.0,0.00014794,2]
[337448316,1725672704938,-151.0,0.00014794,2]
[337448317,1725672704952,-500.0,0.00014794,2]
[337448318,1725672704968,-500.0,0.00014794,2]
[337448319,1725672704984,-1951.69,0.00014794,2]
[337448320,1725672704998,-500.0,0.00014794,2]
[337448321,1725672705012,-151.0,0.00014794,2]
[337448322,1725672705026,-500.0,0.00014794,2]
[337448323,1725672705041,-500.0,0.00014794,2]
[337448324,1725672705057,-1951.69,0.00014794,2]
[337448325,1725672705072,-500.0,0.00014794,2]
[337448326,1725672705086,-500.0,0.00014794,2]
[337448327,1725672705100,-1951.69,0.00014794,2]
[337448328,1725672705321,-151.0,0.00014794,2]
[337448329,1725672705338,-500.0,0.00014794,2]
[337448330,1725672705347,-500.0,0.00014794,2]
[337448331,1725672705356,-500.0,0.00014794,2]
[337448332,1725672705365,-500.0,0.00014794,2]
[337448333,1725672705374,-1951.69,0.00014794,2]
[337448334,1725672705383,-500.0,0.00014794,2]
[337448335,1725672705393,-151.0,0.00014794,2]
[337448336,1725672705402,-583.94452321,0.00014794,2]
[337448337,1725672705412,-500.0,0.00014794,2]
[337448338,1725672705422,-1951.69,0.00014794,2]
[337448339,1725672705431,-151.0,0.00014794,2]
[337448340,1725672705440,-500.0,0.00014794,2]
[337448341,1725672705449,-500.0,0.00014794,2]
[337448342,1725672705459,-500.0,0.00014794,2]
[337448343,1725672705468,-1951.69,0.00014794,2]
[337448344,1725672705477,-500.0,0.00014794,2]
[337448345,1725672705487,-151.0,0.00014794,2]
[337448346,1725672705496,-500.0,0.00014794,2]
[337448347,1725672705505,-1951.69,0.00014794,2]
[337448348,1725672705515,-500.0,0.00014794,2]
[337448349,1725672705524,-500.0,0.00014794,2]
[337448350,1725672705534,-500.0,0.00014794,2]
[337448351,1725672705544,-151.764148,0.00014794,2]
[337448352,1725672705553,-1951.69,0.00014794,2]
[337448353,1725672705563,-500.0,0.00014794,2]
[337448354,1725672705572,-500.0,0.00014794,2]
[337448355,1725672705581,-496.45356108,0.00014794,2]
[337448356,1725672705591,-500.0,0.00014794,2]
[337448357,1725672705602,-500.0,0.00014794,2]
[337448358,1725672705612,-1951.69,0.00014794,2]
[337448359,1725672705621,-500.0,0.00014794,2]
[337448360,1725672705630,-500.0,0.00014794,2]
[337448361,1725672705639,-197.19667292,0.00014794,2]
[337448362,1725672705648,-500.0,0.00014794,2]
[337448363,1725672705658,-1951.69,0.00014794,2]
[337448364,1725672705667,-500.0,0.00014794,2]
[337448365,1725672705676,-500.0,0.00014794,2]
[337448366,1725672705685,-1951.69,0.00014794,2]
[337448367,1725672705694,-500.0,0.00014794,2]
[337448368,1725672705703,-500.0,0.00014794,2]
[337448369,1725672705712,-1951.69,0.00014794,2]
[337448370,1725672705722,-500.0,0.00014794,2]
[337448371,1725672705731,-500.0,0.00014794,2]
[337448372,1725672705739,-1951.69,0.00014794,2]
[337448373,1725672705749,-500.0,0.00014794,2]
[337448374,1725672705759,-1951.69,0.00014794,2]
[337448375,1725672705768,-500.0,0.00014794,2]
[337448376,1725672705778,-500.0,0.00014796,2]
[337448377,1725672705787,-412.06,0.00014796,2]
[337448378,1725672705796,-511.44,0.00014796,2]
[337448379,1725672705805,-2580.35,0.00014796,2]
[337448380,1725672705815,-854.84,0.00014796,2]
[337448381,1725672705824,-445.66959912,0.00014796,2]
[337448382,1725672705834,-650.52,0.00014796,2]
[337448383,1725672705845,-730.38,0.00014796,2]
[337448384,1725672705855,-744.88,0.00014796,2]
[337448385,1725672705864,-1280.22,0.00014796,2]
[337448386,1725672705873,-735.06,0.00014796,2]
[337448387,1725672705884,-1064.37,0.00014796,2]
[337448388,1725672705894,-578.99,0.00014796,2]
[337448389,1725672705903,-522.23,0.00014796,2]
[337448390,1725672705914,-508.32,0.00014796,2]
[337448391,1725672705923,-669.28,0.00014796,2]
[337448392,1725672705933,-6843.13,0.00014796,2]
[337448393,1725672705944,-233.29223342,0.00014796,2]
[337448394,1725672705954,-500.0,0.00014796,2]
[337448395,1725672705965,-500.0,0.00014796,2]
[337448396,1725672705977,-567.21,0.00014796,2]
[337448397,1725672705986,-999.22,0.00014796,2]
[337448398,1725672705996,-1022.17,0.00014796,2]
[337448399,1725672706005,-500.0,0.00014796,2]
[337448400,1725672706015,-1292.12,0.00014796,2]
[337448401,1725672706024,-798.83,0.00014796,2]
[337448402,1725672706034,-522.05,0.00014796,2]
[337448403,1725672706045,-500.0,0.00014796,2]
[337448404,1725672706054,-1408.09,0.00014796,2]
[337448405,1725672706064,-989.6,0.00014796,2]
[337448406,1725672706074,-994.37,0.00014796,2]
[337448407,1725672706084,-826.31,0.00014796,2]
[337448408,1725672706094,-514.94,0.00014796,2]
[337448409,1725672706104,-503.16,0.00014796,2]
[337448410,1725672706113,-532.44,0.00014796,2]
[337448411,1725672706122,-872.57,0.00014796,2]
[337448412,1725672706131,-551.38,0.00014796,2]
[337448413,1725672706141,-839.24,0.00014796,2]
[337448414,1725672706151,-4293.08,0.00014796,2]
[337448415,1725672706161,-2157.24,0.00014796,2]
[337448416,1725672706172,-218.59882618,0.00014796,2]
[337448417,1725672706181,-20684.96,0.00014796,2]
[337448418,1725672706190,-3649.39,0.00014796,2]
[337448419,1725672706200,-613.36,0.00014796,2]
[337448420,1725672706211,-1753.19,0.00014796,2]
[337448421,1725672706223,-604.0,0.00014796,2]
[337448422,1725672706233,-1429.7,0.00014796,2]
[337448423,1725672706242,-923.71,0.00014796,2]
[337448424,1725672706251,-782.11,0.00014796,2]
[337448425,1725672706260,-503.13,0.00014796,2]
[337448426,1725672706270,-11608.67,0.00014796,2]
[337448427,1725672706280,-52.85243493,0.00014796,2]
[337448428,1725672707979,-447.14756507,0.00014796,2]
[337448429,1725672707988,-775.6,0.00014796,2]
[337448430,1725672707998,-750.01742889,0.00014796,2]
[337448431,1725672708011,-155.62257111,0.00014796,2]
[337448432,1725672708021,-384.86437889,0.00014796,2]
[337448433,1725672708033,-115.13562111,0.00014796,2]
[337448434,1725672708043,-700.07,0.00014796,2]
[337448435,1725672708052,-2316.31,0.00014796,2]
[337448436,1725672708062,-540.59,0.00014796,2]
[337448437,1725672708071,-1724.21,0.00014796,2]
[337448438,1725672708081,-596.3,0.00014796,2]
[337448439,1725672708091,-300.0,0.00014796,2]
[337448440,1725672708100,-1020.2789541,0.00014796,2]
[337448441,1725672708150,-1951.69,0.00014794,2]
[337448442,1725672708160,-500.0,0.00014794,2]
[337448443,1725672708169,-439.64865247,0.00014794,2]
[337448444,1725672708179,-1130.3610459,0.00014796,2]
[337448445,1725672708189,-541.23,0.00014796,2]
[337448446,1725672708199,-810.66348967,0.00014796,2]
[337448447,1725672708499,-484.55082125,0.00013818,2]
[337448448,1725672708511,-3563.9999998,0.00013818,2]
[337448449,1725672709410,493.3385,0.00031439,30]
[337448450,1725672710233,-552.22,0.00012011,2]
[337448451,1725672754996,150.33,0.00011042,2]
[337448452,1725672808800,645.84076596,0.00031439,120]
[337448454,1725672948339,150.0,0.00011,2]
[337448455,1725672948359,150.0,0.00011,2]
[337448456,1725672948380,150.0,0.00011,2]
[337448457,1725672948400,150.0,0.00011,2]
[337448458,1725672948420,150.0,0.00011,2]
[337448461,1725673150258,597.78,0.00011612,2]
[337448462,1725673174296,-800.0,0.00013,2]
[337448463,1725673212945,150.0,0.00010959,2]
[337448464,1725673212965,3.34,0.00010959,2]
[337448465,1725673484181,150.0,0.00012,2]
[337448466,1725673484204,150.0,0.00012,2]
[337448467,1725673484223,150.0,0.00012,2]
[337448468,1725673484246,150.0,0.00012,2]
[337448469,1725673484268,150.0,0.00012,2]
[337448470,1725673484288,150.0,0.00012,2]
[337448471,1725673484307,150.0,0.00012,2]
[337448472,1725673484327,150.0,0.00012,2]
[337448473,1725673484346,150.0,0.00012,2]
[337448474,1725673484365,150.0,0.00012,2]
[337448475,1725673484388,253.28145723,0.00012,2]
[337448476,1725673484407,150.0,0.00012,2]
[337448477,1725673484428,267673.03020937,0.00012,2]
[337448488,1725673547317,212.0,0.00031409,120]
[337448489,1725673612502,500.0,0.00031409,30]
[337448494,1725673684450,632.89,0.00011461,2]
[337448551,1725673716121,1000.0,0.00031412,30]
[337448552,1725673716717,1000.0,0.00031412,30]
[337448553,1725673717361,1000.0,0.00031412,30]
[337448554,1725673718071,1000.0,0.00031412,30]
[337448555,1725673718995,1000.0,0.00031412,30]
[337448556,1725673720146,1000.0,0.00031412,30]
[337448557,1725673720847,1000.0,0.00031412,30]
[337448558,1725673721861,1000.0,0.00031412,30]
[337448559,1725673722450,1000.0,0.00031412,30]
[337448560,1725673723018,1000.0,0.00031412,30]
[337448561,1725673723628,1000.0,0.00031412,30]
[337448564,1725673724203,1000.0,0.00031412,30]
[337448565,1725673724807,659.51086749,0.00031412,30]
[337448576,1725673772634,150.0,0.00010959,2]
[337448577,1725673772654,0.1,0.00010959,2]
[337448594,1725673831782,-171.30313229,0.00013315,2]
[337448595,1725673831791,-136.53026771,0.00013325,2]
[337448596,1725673831803,-113.46973229,0.00013325,2]
[337448597,1725673831813,-165.49,0.0001335,2]
[337448598,1725673831822,-250.0,0.00013351,2]
[337448599,1725673831832,-300.0,0.00013365,2]
[337448600,1725673831841,-586.85995009,0.00013366,2]
[337448601,1725673831853,-1261.44509327,0.00013366,2]
[337448602,1725673831864,-13024.37793672,0.00013366,2]
[337448603,1725673831875,-5237.47987487,0.00013366,2]
[337448604,1725673831886,-376.98714505,0.00013366,2]
[337448605,1725673831896,-223.01285495,0.00013373,2]
[337448606,1725673831907,-26.98714505,0.00013373,2]
[337448607,1725673831916,-612.74,0.0001339,2]
[337448608,1725673831926,-188.44,0.00013415,2]
[337448609,1725673831935,-2144.58720744,0.00013435,2]
[337448610,1725673831947,-419.68279256,0.00013435,2]
[337448611,1725673831957,-154.99,0.00013465,2]
[337448612,1725673831966,-375.66508863,0.00013522,2]
[337448613,1725673831975,-387.26,0.00013562,2]
[337448614,1725673831985,-53.3015278,0.00013563,2]
[337448615,1725673831997,-446.6884722,0.00013563,2]
[337448616,1725673832006,-155.23,0.00013598,30]
[337448617,1725673832016,-336.62,0.00013699,2]
[337448618,1725673832027,-169.6,0.00013707,2]
[337448619,1725673832037,-632.89,0.00013725,2]
[337448620,1725673832046,-167.17114333,0.00013767,2]
[337448621,1725673832071,-6.61885667,0.00013767,2]
[337448622,1725673832082,-755.40316907,0.00014,4]
[337448623,1725673832091,-412.35,0.00014055,2]
[337448624,1725673832101,-150.0,0.00014096,2]
[337448625,1725673832110,-1266.199,0.00014097,2]
[337448626,1725673832120,-295.86654345,0.00014097,2]
[337448627,1725673832133,-1258.20445655,0.00014097,2]
[337448628,1725673832144,-150.263,0.00014097,2]
[337448629,1725673832155,-847.17,0.00014097,2]
[337448630,1725673832166,-639.839,0.00014097,2]
[337448631,1725673832175,-933.591,0.00014097,2]
[337448632,1725673832185,-553.565,0.00014097,2]
[337448633,1725673832194,-1904.431,0.00014097,2]
[337448634,1725673832204,-807.0,0.00014097,2]
[337448635,1725673832213,-264.879,0.00014097,2]
[337448636,1725673832223,-3350.45,0.00014097,2]
[337448637,1725673832232,-1137.422,0.00014097,2]
[337448638,1725673832241,-248.703,0.00014097,2]
[337448639,1725673832251,-336.62,0.00014384,2]
[337448640,1725673832260,-2235.0,0.00014463,7]
[337448641,1725673832270,-3149.31533307,0.00014594,2]
[337448642,1725673832279,-414.58721481,0.00014617,2]
[337448643,1725673832288,-209.73542,0.0001465,2]
[337448644,1725673832298,-420.0,0.00014652,2]
[337448645,1725673832310,-443.172,0.00014658,2]
[337448646,1725673832319,-2513.7107,0.00014684,2]
[337448647,1725673832328,-4648.9988,0.00014684,2]
[337448648,1725673832338,-7500.0,0.00014684,2]
[337448649,1725673832349,-2500.0,0.00014684,2]
[337448650,1725673832359,-170.42913419,0.00014684,2]
[337448651,1725673832368,-247.3215,0.00014694,2]
[337448652,1725673832379,-2327.72457143,0.00014694,2]
[337448653,1725673832388,-1154.908,0.00014694,2]
[337448654,1725673832398,-156.92210109,0.00014694,2]
[337448655,1725673832408,-616.40124555,0.00014694,2]
[337448656,1725673832418,-157.46541379,0.00014694,2]
[337448657,1725673832429,-150.0,0.00014737,2]
[337448658,1725673832438,-170.42913417,0.00014756,2]
[337448659,1725673832449,-150.0,0.00014769,2]
[337448660,1725673832459,-500.38414224,0.00014773,2]
[337448661,1725673832469,-500.99700155,0.00014773,2]
[337448662,1725673832479,-503.8626189,0.00014773,2]
[337448663,1725673832489,-502.08720999,0.00014773,2]
[337448664,1725673832499,-13283.67283679,0.00014774,2]
[337448665,1725673832839,-383.45324931,0.00014774,2]
[337448666,1725673832849,-226.22675067,0.00014779,2]
[337448667,1725673832861,-521.124372,0.00014779,2]
[337448668,1725673832874,-595.5625,0.00014779,2]
[337448669,1725673832886,-284.84558499,0.00014779,2]
[337448670,1725673832898,-2053.25173375,0.00014779,2]
[337448671,1725673832909,-874.69775396,0.00014779,2]
[337448672,1725673832919,-1500.0,0.0001478,2]
[337448673,1725673832930,-4555.70869537,0.00014783,2]
[337448674,1725673832940,-500.0,0.00014783,2]
[337448675,1725673832949,-500.0,0.00014783,2]
[337448676,1725673832959,-500.0,0.00014783,2]
[337448677,1725673832969,-500.0,0.00014783,2]
[337448678,1725673832979,-500.0,0.00014783,2]
[337448679,1725673832990,-501.24613837,0.00014783,2]
[337448680,1725673833000,-500.0,0.00014783,2]
[337448681,1725673833010,-234.11120364,0.00014783,2]
[337448682,1725673833021,-500.0,0.00014783,2]
[337448683,1725673833032,-238.51252206,0.00014783,2]
[337448684,1725673833042,-500.0,0.00014783,2]
[337448685,1725673833052,-500.0,0.00014783,2]
[337448686,1725673833062,-500.0,0.00014783,2]
[337448687,1725673833072,-500.0,0.00014783,2]
[337448688,1725673833083,-500.0,0.00014783,2]
[337448689,1725673833093,-500.0,0.00014783,2]
[337448690,1725673833103,-500.0,0.00014783,2]
[337448691,1725673833114,-500.0,0.00014783,2]
[337448692,1725673833125,-500.0,0.00014783,2]
[337448693,1725673833136,-500.0,0.00014783,2]
[337448694,1725673833427,-500.0,0.00014783,2]
[337448695,1725673833439,-500.0,0.00014783,2]
[337448696,1725673833450,-500.0,0.00014783,2]
[337448697,1725673833460,-500.0,0.00014783,2]
[337448698,1725673833470,-500.0,0.00014783,2]
[337448699,1725673833480,-500.0,0.00014783,2]
[337448700,1725673833490,-500.0,0.00014783,2]
[337448701,1725673833500,-500.0,0.00014783,2]
[337448702,1725673833510,-500.0,0.00014783,2]
[337448703,1725673833520,-168.64533705,0.00014783,2]
[337448704,1725673833532,-500.0,0.00014783,2]
[337448705,1725673833541,-500.0,0.00014783,2]
[337448706,1725673833551,-500.0,0.00014783,2]
[337448707,1725673833561,-500.0,0.00014783,2]
[337448708,1725673833570,-500.0,0.00014783,2]
[337448709,1725673833580,-500.0,0.00014783,2]
[337448710,1725673833590,-500.0,0.00014783,2]
[337448711,1725673833600,-500.0,0.00014783,2]
[337448712,1725673833610,-173.62,0.00014784,2]
[337448713,1725673833620,-186784.05651,0.00014784,2]
[337448714,1725673833630,-14940.6724055,0.00014784,2]
[337448715,1725673833640,-1676.08726005,0.00014784,2]
[337448716,1725673833650,-1676.08726005,0.00014784,2]
[337448717,1725673833660,-1676.08726005,0.00014784,2]
[337448718,1725673833669,-152.9,0.00014784,2]
[337448719,1725673833678,-5018.8801898,0.00014789,2]
[337448720,1725673833688,-2574.8860137,0.00014789,2]
[337448721,1725673833699,-1382.9707443,0.00014789,2]
[337448722,1725673833708,-150.0,0.00014791,2]
[337448723,1725673833718,-468.94353425,0.00014793,5]
[337448724,1725673833728,-233.6256283,0.00014793,2]
[337448725,1725673833738,-535.0,0.00014794,2]
[337448726,1725673833747,-500.0,0.00014794,2]
[337448727,1725673833758,-505.24465554,0.00014794,2]
[337448728,1725673833767,-151.0,0.00014794,2]
[337448729,1725673833778,-151.0,0.00014794,2]
[337448730,1725673833788,-614.8159845,0.00014794,2]